Cogmind - Beta 13 @@@ ROGUE MODE // 2024.05.19 @ 20:36:46 Player: Cat Result: Destroyed by S-10 Pest with Light Assault Rifle Performance ------------- Evolutions (1) 500 Regions Visited (4) 800 Robots Destroyed (37) 185 Value Destroyed (908) 908 Prototype IDs (2) 40 Alien Tech Used (0) 0 Bonus (0) 0 TOTAL SCORE: 2433 Bonus ------- None Cogmind --------- Core Integrity 0/400 Matter 300/400 Energy 100/100 System Corruption 1% Temperature Cool (0) Movement Flying (37) Location -9/Mines Parts ------- > --- POWER (1) -------- (None) > --- PROPULSION (2) --- Flight Unit Improved Flight Unit > --- UTILITY (4) ------ Small Storage Unit Medium Matter Pod > --- WEAPON (2) ------- (None) > --- INVENTORY (8) ---- Improved Aluminum Leg Visual Processing Unit Trap Extractor (0/4) Peak State ------------ > --- POWER ------------ Ion Engine > --- PROPULSION ------- Aluminum Leg Aluminum Leg > --- UTILITY ---------- Improved Heat Sink Small Storage Unit Medium Matter Pod Sensor Array > --- WEAPON ----------- EM Shotgun Medium Laser > --- INVENTORY -------- Improved Aluminum Leg Flight Unit Improved Flight Unit Visual Processing Unit Trap Extractor Datajack [Rating: 13] Favorites ----------- Power Light Ion Engine Engine Light Ion Engine Propulsion Light Treads Treads Light Treads Leg Aluminum Leg Wheel Compact Wheel Flight Unit Improved Flight Unit Utility Light Armor Plating Device Sensor Array Storage Small Storage Unit Processor Visual Processing Unit Protection Light Armor Plating Weapon Light Cannon Energy Gun Medium Laser Energy Cannon Beam Cannon Ballistic Gun Light Assault Rifle Ballistic Cannon Light Cannon Launcher Grenade Launcher Special Melee Weapon Datajack Build | -11 -10 -10 -9 -9 ------- Run | Yrd Mat Min Mat Min Slots Evolved 2 | . . . 2 . Power . | . . . . . Propulsion . | . . . . . Utility 2 | . . . 2 . Weapon . | . . . . . Parts Attached 47 | 6 14 6 18 3 Power 4 | 1 1 1 1 . Engine 4 | 1 1 1 1 . Core . | . . . . . Reactor . | . . . . . Propulsion 13 | 2 2 2 5 2 Treads 2 | 2 . . . . Leg 6 | . . 2 4 . Wheel 2 | . 2 . . . Hover . | . . . . . Flight 3 | . . . 1 2 Utility 10 | 1 4 1 4 . Device 4 | . 1 1 2 . Storage 3 | 1 . . 2 . Processor 1 | . 1 . . . Hackware . | . . . . . Protection 2 | . 2 . . . Artifact . | . . . . . Weapon 20 | 2 7 2 8 1 Energy Gun 6 | . 4 . 2 . Energy Cannon 4 | . . 1 3 . Ballistic Gun 3 | 2 1 . . . Ballistic Cannon 1 | . 1 . . . Launcher 3 | . . 1 2 . Special Weapon . | . . . . . Impact Weapon . | . . . . . Slashing Weapon . | . . . . . Piercing Weapon . | . . . . . Special Melee Weapon 3 | . 1 . 1 1 Unidentified Prototypes . | . . . . . Parts Lost 21 | . 4 3 6 8 Power 3 | . . 1 1 1 Propulsion 6 | . 1 2 1 2 Utility 3 | . . . 1 2 Weapon 9 | . 3 . 3 3 Highest Loss Streak 8 | . 3 3 4 8 To Critical Strikes . | . . . . . Average Slot Usage (%) 89 | . 93 89 85 75 Engine 11 | . 14 10 10 9 Treads 8 | . 20 . . . Leg 7 | . . 1 20 5 Wheel 6 | . 3 19 . . Device 14 | . 9 14 22 18 Storage 6 | . 7 . 11 22 Processor 1 | . 2 . . . Protection 7 | . 7 14 4 . Energy Gun 6 | . 10 1 7 3 Energy Cannon 2 | . . 7 1 . Ballistic Gun 5 | . 14 . . . Ballistic Cannon 6 | . 2 14 4 . Launcher 1 | . . 4 2 . Naked Turns . | . . . . . Heaviest Build 19 | 13 13 13 19 15 Greatest Support 40 | 40 40 26 23 10 Greatest Overweight (x) 4 | . 3 4 1 4 Average Overweight (x) . | . . . . 1 Largest Inventory Capacity 8 | 8 8 5 8 8 Average Capacity 6 | 6 6 5 7 8 Most Carried 7 | 3 6 5 7 6 Average Carried 4 | . 3 4 4 4 Final Capacity 8 | 8 5 5 8 8 Final Carried 6 | 1 5 5 6 3 Class Distribution -------------------- 78% | Mutant 21% | Scavenger-Mutant Dominant Class ---------------- Mutant | -10/Materials Mutant | -10/Mines Scavenger-Mutant | -9/Materials Mutant | -9/Mines Resources | -11 -10 -10 -9 -9 ----------- Run | Yrd Mat Min Mat Min Matter Collected 977 | 216 282 189 290 . Remotely . | . . . . . Salvage Created 947 | . 471 171 305 . Parts 74 | . 36 11 27 . Haulers Intercepted . | . . . . . Recyclers Shooed . | . . . . . Parts Field Recycled . | . . . . . Retrieved Matter . | . . . . . Parts Self-Destructed . | . . . . . Prevented . | . . . . . Kills | -11 -10 -10 -9 -9 ------- Run | Yrd Mat Min Mat Min Combat Hostiles Destroyed 29 | . 10 7 12 . Guns 14 | . 9 . 5 . Cannons 8 | . . 5 3 . AOE 6 | . 1 2 3 . Classes Destroyed 9 | . 6 1 2 . Worker 2 | . 1 . 1 . Tunneler 1 | . 1 . . . Recycler 1 | . . . 1 . Operator 1 | . 1 . . . Watcher 4 | . 3 . 1 . Swarmer 10 | . 3 . 7 . Grunt 16 | . 7 6 3 . Sentry 2 | . . . 2 . Assembled 1 | . . 1 . . Best Kill Streak 6 | . 3 2 6 . Combat Bots Only 4 | . 3 2 4 . Max Kills in Single Turn 4 | . 2 1 4 . Gunslinging 1 | . 1 . . . Exploded 3 | . 1 1 3 . Melee . | . . . . . Uniques/NPCs Destroyed . | . . . . . Combat | -11 -10 -10 -9 -9 -------- Run | Yrd Mat Min Mat Min Hostile Shots Fired 289 | . 89 30 97 73 Missed 94 | . 31 6 32 25 Damage Taken 2334 | . 751 358 824 401 Core 612 | . 115 97 232 168 Absorbed by Shields . | . . . . . Core Remaining (%) 57 | 100 . 15 . . Volleys Fired 122 | . 56 21 42 3 Largest 2 | . 2 2 2 2 Hottest 95 | . 70 95 95 95 Shots Fired 215 | . 106 42 62 5 Gun 142 | . 106 . 31 5 Cannon 60 | . . 36 24 . Launcher 13 | . . 6 7 . Special . | . . . . . Kinetic 112 | . 71 21 20 . Thermal 86 | . 33 15 35 3 Explosive 13 | . . 6 7 . Electromagnetic 4 | . 2 . . 2 Robot Hit Streak 16 | . 10 6 16 1 Robot Miss Streak 6 | . 6 1 3 3 Penetration Max . | . . . . . Secondary Targets 1 | . 1 . . . Max Gunslinging Chain 1 | . 1 . . . Shots Hit Robots 125 | . 62 24 36 3 Core Hits 63 | . 27 11 25 . Critical Kills 1 | . 1 . . . Critical Parts Destroyed . | . . . . . Critical Strikes 8 | . 1 2 5 . Burn 4 | . . . 4 . Destroy 1 | . 1 . . . Blast 3 | . . 2 1 . Melee Attacks 5 | . 2 . . 3 Impact . | . . . . . Slashing . | . . . . . Piercing . | . . . . . Sneak Attacks . | . . . . . Combat Hostiles . | . . . . . Follow-up Attacks . | . . . . . Damage Inflicted 2080 | . 710 549 812 9 Guns 899 | . 640 . 250 9 Cannons 574 | . . 324 250 . Explosions 607 | . 70 225 312 . Melee . | . . . . . Ramming . | . . . . . Kinetic 752 | . 353 166 233 . Thermal 769 | . 344 158 267 . Explosive 529 | . . 225 304 . Electromagnetic 30 | . 13 . 8 9 Impact . | . . . . . Slashing . | . . . . . Piercing . | . . . . . Highest Corruption 1 | . . . 1 1 Average Corruption 1 | . . . 1 1 Corruption Purged . | . . . . . Corruption Blocked . | . . . . . Effects 1 | . . . . 1 Alerts 1 | . . . . 1 Overload Shots . | . . . . . Overflow Damage 46 | . 3 43 . . Projectiles . | . . . . . Explosions 46 | . 3 43 . . Melee . | . . . . . Knockbacks 3 | . . 3 . . Impact . | . . . . . Kinetic 3 | . . 3 . . Secondary . | . . . . . Self-Inflicted Damage 138 | . 37 35 66 . Shots 6 | . 1 2 3 . Rammed . | . . . . . Targets Rammed . | . . . . . Kicked . | . . . . . Crushed . | . . . . . Highest Temperature 345 | . 168 345 20 . Average Temperature 75 | . 41 126 11 . Received Heat Transfer 768 | . 369 159 240 . Effects 3 | . . 3 . . Shutdowns 1 | . . 1 . . Energy Bleed 1 | . . 1 . . Interference 1 | . . 1 . . Siege Activations . | . . . . . Robots Corrupted . | . . . . . Combat Hostiles . | . . . . . Parts Fried . | . . . . . Impact Corruptions . | . . . . . Robots Melted 1 | . . . 1 . Combat Hostiles 1 | . . . 1 . Parts Melted 2 | . . . 2 . Heat Transferred 2179 | . 773 333 1073 . Parts Sabotaged . | . . . . . Parts Stolen . | . . . . . Parts Stripped . | . . . . . Power Chain Reactions 1 | . 1 . . . Alert | -11 -10 -10 -9 -9 ------- Run | Yrd Mat Min Mat Min Peak Influence 285 | . 185 111 285 36 Initial 22 | . . 16 22 21 Average 72 | . 70 48 108 5 Maximum Alert Level 1 | . . . 1 . Low Security (%) 96 | 100 100 100 89 100 Level 1 3 | . . . 10 . Level 2 . | . . . . . Level 3 . | . . . . . Level 4 . | . . . . . Level 5 . | . . . . . High Security . | . . . . . Max Security . | . . . . . Squads Dispatched 2 | . 1 . 1 . Investigation 2 | . 1 . 1 . Extermination . | . . . . . Reinforcement . | . . . . . Assault . | . . . . . Garrison . | . . . . . Intercept . | . . . . . Searches Triggered . | . . . . . Construction Impeded . | . . . . . Haulers Reinforced . | . . . . . Active Scanning Responses . | . . . . . Cargo Convoy Interrupts . | . . . . . Stealth | -11 -10 -10 -9 -9 --------- Run | Yrd Mat Min Mat Min Distress Signals 1 | . . 1 . . Communications Jammed . | . . . . . Distress Signals . | . . . . . Times Spotted 44 | . 20 6 15 3 Peak Tracking Total 4 | . 3 2 4 3 Tactical Retreats 4 | . 2 2 . . Traps | -11 -10 -10 -9 -9 ------- Run | Yrd Mat Min Mat Min Traps Triggered 4 | . 1 . 3 . Indirectly . | . . . . . Trap Hack Attempts . | . . . . . Triggered . | . . . . . Disarmed . | . . . . . Reprogrammed . | . . . . . Reused . | . . . . . Traps Extracted . | . . . . . Installed . | . . . . . Triggered . | . . . . . Machines | -11 -10 -10 -9 -9 ---------- Run | Yrd Mat Min Mat Min Machines Disabled 4 | . 2 . 2 . Max in Single Turn 1 | . 1 . 1 . Machines Repaired . | . . . . . Machines Dismantled . | . . . . . Machines Sabotaged . | . . . . . Overloaded Fab Kills . | . . . . . Hacking | -11 -10 -10 -9 -9 --------- Run | Yrd Mat Min Mat Min Machines Accessed 8 | . 5 . 3 . Terminals 7 | . 5 . 2 . Fabricators . | . . . . . Repair Stations . | . . . . . Recycling Units . | . . . . . Scanalyzers 1 | . . . 1 . Garrison Access . | . . . . . Total Hacks 14 | . 8 . 6 . Successful 13 | . 7 . 6 . Failed 1 | . 1 . . . Catastrophic . | . . . . . Database Lockouts . | . . . . . Manual . | . . . . . Terminals 12 | . 8 . 4 . Fabricators . | . . . . . Repair Stations . | . . . . . Recycling Units . | . . . . . Scanalyzers 2 | . . . 2 . Garrison Access . | . . . . . Terminal Hacks 11 | . 7 . 4 . Record 5 | . 5 . . . Prototype ID Bank 1 | . . . 1 . Alert Level 2 | . 1 . 1 . Transport Status 1 | . . . 1 . Zone Layout 2 | . 1 . 1 . Fabricator Hacks . | . . . . . Repair Station Hacks . | . . . . . Recycling Unit Hacks . | . . . . . Scanalyzer 2 | . . . 2 . Insert Component 1 | . . . 1 . Analyze 1 | . . . 1 . Garrison Access Hacks . | . . . . . Unauthorized Hacks . | . . . . . Terminals . | . . . . . Fabricators . | . . . . . Repair Stations . | . . . . . Recycling Units . | . . . . . Scanalyzers . | . . . . . Garrison Access . | . . . . . Data Cores Recovered . | . . . . . Used . | . . . . . Hacking Detections 3 | . 2 . 1 . Full Trace Events 1 | . . . 1 . Feedback Events . | . . . . . Feedback Blocked . | . . . . . Robot Schematics Acquired . | . . . . . Robots Built . | . . . . . Authchips . | . . . . . Time . | . . . . . Total Robot Build Rating . | . . . . . Part Schematics Acquired 1 | . . . 1 . Parts Built . | . . . . . Authchips . | . . . . . Time . | . . . . . Total Part Build Rating . | . . . . . Parts Repaired . | . . . . . Time . | . . . . . Parts Recycled . | . . . . . Recycled Matter . | . . . . . Retrieved Matter . | . . . . . Retrieved Components . | . . . . . Parts Scanalyzed 1 | . . . 1 . Part Schematics Acquired 1 | . . . 1 . Parts Damaged . | . . . . . Bothacking | -11 -10 -10 -9 -9 ------------ Run | Yrd Mat Min Mat Min Used RIF Installer . | . . . . . Robots Hacked 2 | . 1 . . 1 Non-combat 1 | . 1 . . . Combat 1 | . . . . 1 Robot Hacks Applied 2 | . 1 . . 1 parse_system 2 | . 1 . . 1 Relay Couplers Released . | . . . . . Fabnet Peak Effective % . | . . . . . Robots Rewired . | . . . . . Allies Hacked . | . . . . . Hacks Repelled . | . . . . . Allies | -11 -10 -10 -9 -9 -------- Run | Yrd Mat Min Mat Min Total Allies . | . . . . . Largest Group . | . . . . . Highest-Rated Group . | . . . . . Highest-Rated Ally . | . . . . . Total Orders . | . . . . . Ally Attacks . | . . . . . Total Damage . | . . . . . Kills . | . . . . . Allies Corrupted . | . . . . . Allies Melted . | . . . . . Intel | -11 -10 -10 -9 -9 ------- Run | Yrd Mat Min Mat Min Robot Analysis Total . | . . . . . Derelict Logs Recovered . | . . . . . Drone Launches . | . . . . . Drone Recoveries . | . . . . . Exploration | -11 -10 -10 -9 -9 ------------- Run | Yrd Mat Min Mat Min Turns Passed 2840 | 123 1143 672 850 52 Spaces Moved 1526 | 78 654 422 362 10 Core 63 | 12 2 47 . 2 Treads 512 | 66 446 . . . Legs 394 | . . 28 362 4 Wheels 553 | . 206 347 . . Hover . | . . . . . Flight 4 | . . . . 4 Fastest Speed 50 | 50 90 90 120 112 Average Speed 127 | 143 139 106 125 170 Slowest Speed 250 | 160 200 250 190 250 Overloaded Moves . | . . . . . Propulsion Burnouts . | . . . . . Robots Hopped . | . . . . . Cave-ins Triggered . | . . . . . Exploration Rate (%) 41 | 6 85 81 29 8 Regions Visited 4 Branch Regions 2 Pre-discovered Areas . | . . . . . Known Exits Taken . | . . . . . Unknown Exits Taken 4 | 1 1 1 1 . Scrap Searched 3 | . . 3 . . Spaces Dug . | . . . . . Terrain Destroyed 87 | . 3 40 44 . Melee . | . . . . . Projectile . | . . . . . AOE 87 | . 3 40 44 . Terrain Rammed . | . . . . . Walls Destroyed . | . . . . . Machines Disabled . | . . . . . Actions | -11 -10 -10 -9 -9 --------- Run | Yrd Mat Min Mat Min Total 2207 | 90 783 601 694 39 Wait 467 | . 39 147 261 20 Move 1522 | 77 653 421 361 10 Hop . | . . . . . Pick Up 34 | 7 14 3 10 . Fast Attach 4 | . 1 3 . . Attach 26 | 6 7 . 10 3 Detach 1 | . . . 1 . Swap 17 | . 6 3 8 . Drop 9 | . 5 3 1 . Fire 122 | . 56 21 42 3 Melee 5 | . 2 . . 3 Ram . | . . . . . Kick . | . . . . . Crush . | . . . . . Escape Stasis . | . . . . . Rewire . | . . . . . Trap . | . . . . . Miscellaneous . | . . . . . Route ------- -11/Scrapyard -10/Materials (discovered 5 exits: *Mat x3 / [*Min x2]) -10/Mines -9/Materials -9/Mines History --------- Turn | Location | Event 6 | -11/Scrapyard | Discovered new exit (range 14) 124 | -11/Scrapyard | Entered Materials 206 | -10/Materials | Discovered new exit (range 10) 306 | -10/Materials | Build established: Mutant 340 | -10/Materials | Discovered new exit (range 10) 538 | -10/Materials | Discovered new exit (range 15) 817 | -10/Materials | Lost 3 parts (3w) 916 | -10/Materials | Discovered new exit (range 14) 1111 | -10/Materials | Discovered new exit (range 16) 1267 | -10/Materials | Entered Mines 1408 | -10/Mines | Excavation squad dispatched 1408 | -10/Mines | A large section of the Mines collapsed 1412 | -10/Mines | Core integrity fell below 50% 1612 | -10/Mines | Discovered new exit (range 15) 1725 | -10/Mines | Core integrity fell below 20% 1756 | -10/Mines | Lost 3 parts (1p2n) 1939 | -10/Mines | Entered Materials 1939 | -9/Materials | Evolved 2 slots: Utility x2 2300 | -9/Materials | Lost 4 parts (1n1u2w) 2416 | -9/Materials | Discovered new exit (range 16) 2646 | -9/Materials | Build established: Scavenger-Mutant 2664 | -9/Materials | Core integrity fell below 50% 2789 | -9/Materials | Entered Mines 2824 | -9/Mines | Core integrity fell below 20% 2841 | -9/Mines | Destroyed by S-10 Pest with Light Assault Rifle Last Messages --------------- System corrupted (+1). R-06 Scavenger collects Flight Unit. U-05 Engineer lays Concrete. Acquired EM Shotgun. Acquired 10 matter. Acquired Med. Matter Pod. LOCATION=UNKNOWN GOAL=ESCAPE EM Shotgun destroyed. Med. Laser destroyed. Aluminum Leg destroyed. Jacked S-10 Pest... >>parse_system Reading system data... Jacked S-10 Pest... System corrupted: IFF burst signal emitted. Sensor Array destroyed. Ion Engine destroyed. Datajack destroyed. Imp. Heat Sink destroyed. Map ----- +----------------------------------------------------+ | | | | | | | | | | | | | | | | | | | | | | | | | | | | | | | | | | | | | | | ???????????????????????????????????????? | | ????????????????????????###############? | | ????????????????????????# #? | | ????????????????????????#s""" """ #? | | ????????????????????????# """ """ #? | | ????????????????????????# """ """ #? | | ????????????????????????#@""" """ #? | | ????????????????????????# s #? | | ????????????????????????#s""" """ #? | | ????????????????????????# """ """ #? | | ????????????????????????# """ """ #? | | ????????????????????????# """ #? | | ????????????????????????# #? | | ????????????????????????# ############? | | ????????????????????????# #???????????? | | ????????????????????????# #???????????? | | ????????????????????????# #???????????? | | ????????????????????????# #???????????? | | ????????????????????????? #???????????? | | ????????????????????????? ????????????? | | ????????????????????????? ????????????? | | ????????????????????????? ????????????? | | ???????????????????????????????????????? | | ???????????????????????????????????????? | | ???????????????????????????????????????? | | ???????????????????????????????????????? | | ???????????????????????????????????????? | | ???????????????????????????????????????? | | ???????????????????????????????????????? | | ???????????????????????????????????????? | | ???????????????????????????????????????? | +----------------------------------------------------+ Best States ------------- Heat Dissipation 42 Energy Generation 10 Energy Capacity 250 Matter Stores 305 Matter Capacity 400 Sight Range 18 Robot Scan Range 14 Terrain Scan Density 10 Armor Coverage 150 Evasion (%) 55 Recoil Reduction 2 Item Schematics ----------------- Beam Cannon | -9/Materials | Scanalyzed Robot Schematics ------------------ None Fabricated ------------ Nothing Alien Tech Used ----------------- None Achievements -------------- Crack Shot Let's See Who's Tougher Challenges ------------ None Game ------ Seed HelicalFocalDetector Manual? 0 Play Time 00:32:48 Cumulative 1.8 hours Start 2024.05.19 @ 20:03:03 End 2024.05.19 @ 20:36:46 Sessions 1 Manual Loads 0 Difficulty Rogue Special Mode None Game No. 4 Rogue 4 Adventurer 0 Explorer 0 Win Type - Total 0 Types 0/0/0/0/0/0/0/0/0 Lore% 1 Gallery% 4 Achievement% 3 Wizard Run 0 Options --------- Layout 1 ASCII 0 Keyboard 0 Movement Mouse Keybinds 0 Fullscreen 1 Font 24/Smallcaps Map View 50x35 Zoom Use 0% Tactical HUD 0 Map Filters NONE Filters NONE Steam 1 RUN: e0d790a3-046c-4560-a21d-1e4666fe2bf8